[Event "Turkish Super League 2019"]
[Site "Konya"]
[Date "2019.07.28"]
[Round "13"]
[White "Yurtseven, Melih"]
[Black "Quparadze, Giga"]
[Result "1/2-1/2"]
[ECO "A30"]
[WhiteElo "2381"]
[BlackElo "2499"]
[Annotator "ChessBase"]
[PlyCount "102"]
[EventDate "2019.07.17"]
[EventType "team-tourn"]
[EventCountry "TUR"]
[SourceTitle "playchess.com"]
[Source "ChessBase"]
[SourceQuality "1"]
[TimeControl "40/5400+30:1800+30"]

1. Nf3 {[%emt 0:00:30]} Nf6 {[%emt 0:00:30]} 2. g3 {[%emt 0:00:00]} b6 {[%emt 0:00:30]} 3. Bg2 {[%emt 0:00:00]} Bb7 {[%emt 0:00:00]} 4. b3 {[%emt 0:00:30]} g6 {[%emt 0:00:00]} 5. Bb2 {[%emt 0:00:30]} Bg7 {[%emt 0:00:00]} 6. c4 {[%emt 0:00:30]} c5 {[%emt 0:00:00]} 7. O-O {[%emt 0:00:30]} O-O {[%emt 0:00:30]} 8. Nc3 {[%emt 0:00:30]} Na6 {[%emt 0:00:00]} 9. d4 {[%emt 0:01:30]} d5 {[%emt 0:00:00]} 10. dxc5 {[%emt 0:02:30]} Nxc5 {[%emt 0:00:00]} 11. Nxd5 {[%emt 0:02:30]} Nxd5 {[%emt 0:00:00]} 12. Bxg7 {[%emt 0:00:00]} Kxg7 {[%emt 0:00:30]} 13. cxd5 {[%emt 0:00:00]} Qxd5 {[%emt 0:00:00]} 14. Qxd5 {[%emt 0:01:30]} Bxd5 {[%emt 0:00:00]} 15. Rfd1 {[%emt 0:00:00]} Rfd8 {[%emt 0:00:30]} 16. Ne5 {[%emt 0:05:00]} Bxg2 {[%emt 0:01:30]} 17. Kxg2 {[%emt 0:00:30]} Rac8 {[%emt 0:00:30]} 18. Rac1 {[%emt 0:04:30]} f6 {[%emt 0:02:30]} 19. Nf3 {[%emt 0:06:30]} Kf7 {[%emt 0:02:30]} 20. Rxd8 {[%emt 0:03:30]} Rxd8 {[%emt 0:00:30]} 21. b4 {[%emt 0:04:30]} Ne6 {[%emt 0:00:00]} 22. Rc3 {[%emt 0:07:30]} g5 {[%emt 0:00:00]} 23. Ra3 {[%emt 0:04:30]} Rd7 {[%emt 0:00:30]} 24. h3 {[%emt 0:07:30]} h5 {[%emt 0:00:30]} 25. e3 {[%emt 0:00:00]} Rc7 {[%emt 0:00:30]} 26. Kf1 {[%emt 0:01:00]} Rc4 {[%emt 0:00:30]} 27. b5 {[%emt 0:13:30]} Rb4 {[%emt 0:02:30]} 28. Rxa7 {[%emt 0:01:30]} Rxb5 {[%emt 0:00:00]} 29. a4 {[%emt 0:07:30]} Rb1+ {[%emt 0:01:00]} 30. Kg2 {[%emt 0:00:00]} Rb2 {[%emt 0:04:30]} 31. a5 {[%emt 0:07:00]} Nc5 {[%emt 0:00:30]} 32. axb6 {[%emt 0:00:00]} Ne4 {[%emt 0:00:30]} 33. Nd4 {[%emt 0:03:51]} Nxf2 {[%emt 0:00:00]} 34. Nf5 {[%emt 0:08:44]} Nxh3+ {[%emt 0:00:00]} 35. Kf3 {[%emt 0:00:00]} g4+ {[%emt 0:07:30]} 36. Ke4 {[%emt 0:00:07]} Rxb6 {[%emt 0:00:00]} 37. Rxe7+ {[%emt 0:00:06]} Kf8 {[%emt 0:00:00]} 38. Ra7 {[%emt 0:03:15]} Ng5+ {[%emt 0:01:30]} 39. Kd4 {[%emt 0:04:07]} Rb4+ {[%emt 0:00:30]} 40. Kc5 {[%emt 0:00:00]} Re4 {[%emt 0:00:00]} 41. Ra8+ {[%emt 0:02:50]} Kf7 {[%emt 0:04:00]} 42. Ra7+ {[%emt 0:00:30]} Kf8 {[%emt 0:01:30]} 43. Ra8+ {[%emt 0:00:00]} Re8 {[%emt 0:00:30]} 44. Rxe8+ {[%emt 0:00:00]} Kxe8 {[%emt 0:00:30]} 45. Ng7+ {[%emt 0:00:30]} Kf7 {[%emt 0:00:30]} 46. Nxh5 {[%emt 0:00:00]} Kg6 {[%emt 0:02:30]} 47. Nf4+ {[%emt 0:00:00]} Kf5 {[%emt 0:00:30]} 48. Kd5 {[%emt 0:02:30]} Ne4 {[%emt 0:00:30]} 49. Ne2 {[%emt 0:00:30]} Nd2 {[%emt 0:00:00]} 50. e4+ {[%emt 0:01:30]} Kg5 {[%emt 0:00:00]} 51. Kd4 {[%emt 0:01:30]} Nf3+ {[%emt 0:01:30]} 1/2-1/2

[Event "Turkish Super League 2019"]
[Site "Konya"]
[Date "2019.07.28"]
[Round "13"]
[White "Buksa, Nataliya"]
[Black "Atalik, Ekaterina"]
[Result "0-1"]
[ECO "C92"]
[WhiteElo "2379"]
[BlackElo "2459"]
[Annotator "ChessBase"]
[PlyCount "108"]
[EventDate "2019.07.17"]
[EventType "team-tourn"]
[EventCountry "TUR"]
[SourceTitle "playchess.com"]
[Source "ChessBase"]
[SourceQuality "1"]
[TimeControl "40/5400+30:1800+30"]

1. e4 {[%emt 0:00:30]} e5 {[%emt 0:01:30]} 2. Nf3 {[%emt 0:00:00]} Nc6 {[%emt 0:00:00]} 3. Bb5 {[%emt 0:00:00]} a6 {[%emt 0:00:00]} 4. Ba4 {[%emt 0:00:00]} Nf6 {[%emt 0:00:30]} 5. O-O {[%emt 0:00:00]} Be7 {[%emt 0:00:00]} 6. Re1 {[%emt 0:00:30]} b5 {[%emt 0:00:00]} 7. Bb3 {[%emt 0:00:30]} d6 {[%emt 0:00:30]} 8. c3 {[%emt 0:00:30]} O-O {[%emt 0:00:30]} 9. h3 {[%emt 0:00:00]} Bb7 {[%emt 0:00:00]} 10. d4 {[%emt 0:00:00]} Nd7 {[%emt 0:00:00]} 11. Nbd2 {[%emt 0:01:30]} exd4 {[%emt 0:00:30]} 12. cxd4 {[%emt 0:00:00]} Na5 {[%emt 0:00:30]} 13. Bc2 {[%emt 0:00:00]} Re8 {[%emt 0:01:30]} 14. Nf1 {[%emt 0:00:00]} Bf6 {[%emt 0:00:30]} 15. Rb1 {[%emt 0:09:00]} c5 {[%emt 0:03:30]} 16. d5 {[%emt 0:00:00]} Nc4 {[%emt 0:01:30]} 17. b3 {[%emt 0:04:00]} Nce5 {[%emt 0:01:30]} 18. N3h2 {[%emt 0:16:30]} Ng6 {[%emt 0:01:30]} 19. Ng3 {[%emt 0:03:30]} b4 {[%emt 0:05:30]} 20. Nf5 {[%emt 0:05:30]} Nb6 {[%emt 0:00:30]} 21. Bd2 {[%emt 0:11:30]} Bc8 {[%emt 0:04:30]} 22. Qh5 {[%emt 0:05:30]} Bxf5 {[%emt 0:06:30]} 23. Qxf5 {[%emt 0:00:30]} a5 {[%emt 0:02:30]} 24. Ng4 {[%emt 0:13:30]} Bd4 {[%emt 0:01:30]} 25. Be3 {[%emt 0:01:30]} Bxe3 {[%emt 0:02:30]} 26. Rxe3 {[%emt 0:00:30]} a4 {[%emt 0:01:30]} 27. h4 {[%emt 0:04:30]} axb3 {[%emt 0:04:30]} 28. axb3 {[%emt 0:00:30]} Ra2 {[%emt 0:02:30]} 29. Bd3 {[%emt 0:00:00]} Qc8 {[%emt 0:11:30]} 30. Qh5 {[%emt 0:07:55]} c4 {[%emt 0:06:30]} 31. bxc4 {[%emt 0:00:18]} Nxc4 {[%emt 0:03:30]} 32. Bxc4 {[%emt 0:15:31]} Qxc4 {[%emt 0:00:30]} 33. Reb3 {[%emt 0:02:13]} Ra4 {[%emt 0:21:58]} 34. Qg5 {[%emt 0:00:30]} h6 {[%emt 0:00:30]} 35. Qd2 {[%emt 0:00:30]} Rxe4 {[%emt 0:00:30]} 36. Ne3 {[%emt 0:00:30]} Qd4 {[%emt 0:00:30]} 37. Qc2 {[%emt 0:00:30]} Qe5 {[%emt 0:00:30]} 38. Qc6 {[%emt 0:00:30]} Ra1 {[%emt 0:00:30]} 39. Qc1 {[%emt 0:00:25]} Rxb1 {[%emt 0:02:00]} 40. Qxb1 {[%emt 0:00:00]} Rxh4 {[%emt 0:00:00]} 41. Rxb4 {[%emt 0:03:38]} Qh2+ {[%emt 0:05:02]} 42. Kf1 {[%emt 0:00:30]} Rxb4 {[%emt 0:00:30]} 43. Qxb4 {[%emt 0:00:30]} Nf4 {[%emt 0:02:30]} 44. Qb8+ {[%emt 0:00:30]} Kh7 {[%emt 0:00:30]} 45. f3 {[%emt 0:02:30]} Qh1+ {[%emt 0:00:30]} 46. Kf2 {[%emt 0:00:00]} Qc1 {[%emt 0:02:30]} 47. Qe8 {[%emt 0:00:00]} Qd2+ {[%emt 0:05:30]} 48. Kg3 {[%emt 0:02:30]} Nh5+ {[%emt 0:01:30]} 49. Kh2 {[%emt 0:00:30]} Nf6 {[%emt 0:00:30]} 50. Qe7 {[%emt 0:01:30]} Qd4 {[%emt 0:01:30]} 51. g3 {[%emt 0:04:30]} Qd2+ {[%emt 0:01:30]} 52. Kh3 {[%emt 0:01:00]} Qe1 {[%emt 0:00:30]} 53. Kh2 {[%emt 0:02:33]} Qe2+ {[%emt 0:00:30]} 54. Kh3 {[%emt 0:00:30]} Qxf3 {[%emt 0:00:30]} 0-1

[Event "Turkish Super League 2019"]
[Site "Konya"]
[Date "2019.07.28"]
[Round "13"]
[White "Can, Isik"]
[Black "Akdogan, Alperen"]
[Result "0-1"]
[ECO "B03"]
[WhiteElo "2374"]
[BlackElo "2193"]
[Annotator "NA"]
[PlyCount "60"]
[EventDate "2019.07.17"]
[EventType "team-tourn"]
[EventCountry "TUR"]
[SourceTitle "playchess.com"]
[Source "ChessBase"]
[SourceQuality "1"]
[TimeControl "40/5400+30:1800+30"]

1. e4 {[%emt 0:00:30]} Nf6 {[%emt 0:01:30]} 2. e5 {[%emt 0:00:00]} Nd5 {[%emt 0:00:30]} 3. d4 {[%emt 0:00:00]} d6 {[%emt 0:00:30]} 4. c4 {[%emt 0:00:30]} Nb6 {[%emt 0:00:30]} 5. exd6 {[%emt 0:00:00]} exd6 {[%emt 0:00:00]} 6. Nc3 {[%emt 0:00:00]} Be7 {[%emt 0:00:00]} 7. Bd3 {[%emt 0:00:00]} O-O {[%emt 0:00:30]} 8. Nge2 {[%emt 0:00:00]} Bf6 {[%emt 0:01:30]} 9. O-O {[%emt 0:00:30]} Nc6 {[%emt 0:04:30]} 10. b3 {[%emt 0:01:30]} Bg4 {[%emt 0:04:30]} 11. Be3 {[%emt 0:00:30]} Bh5 {[%emt 0:00:30]} 12. Qd2 {[%emt 0:06:30]} Bg6 {[%emt 0:10:30]} 13. Bxg6 {[%emt 0:04:30]} hxg6 {[%emt 0:00:00]} 14. g4 {[%emt 0:08:30]} Re8 {[%emt 0:10:00]} 15. f4 {[%emt 0:01:30]} d5 {[%emt 0:24:30]} 16. c5 {[%emt 0:01:30]} Nc8 {[%emt 0:00:30]} 17. Rad1 {[%emt 0:23:30]} Qd7 {[%emt 0:04:30]} 18. h3 {[%emt 0:00:30]} b6 {[%emt 0:02:30]} 19. Kh1 {[%emt 0:12:30]} bxc5 {[%emt 0:15:21]} 20. dxc5 {[%emt 0:00:00]} N8e7 {[%emt 0:04:07]} 21. Bd4 {[%emt 0:09:00]} Nxd4 {[%emt 0:01:28]} 22. Nxd4 {[%emt 0:00:30]} Rad8 {[%emt 0:00:00]} 23. Qd3 {[%emt 0:08:30]} Kh8 {[%emt 0:08:32]} 24. b4 {[%emt 0:01:50]} Nc6 {[%emt 0:01:29]} 25. Nxc6 {[%emt 0:10:00]} Qxc6 {[%emt 0:00:30]} 26. Nxd5 {[%emt 0:00:30]} Rd7 {[%emt 0:00:00]} 27. Rd2 {[%emt 0:04:39]} Red8 {[%emt 0:01:07]} 28. Rfd1 {[%emt 0:00:30]} Rxd5 {[%emt 0:00:00]} 29. Qxd5 {[%emt 0:00:41]} Rxd5 {[%emt 0:00:20]} 30. Rxd5 {[%emt 0:00:00]} Qe6 {[%emt 0:00:27]} 0-1

[Event "Turkish Super League 2019"]
[Site "Konya"]
[Date "2019.07.28"]
[Round "13"]
[White "Ozen, Bahadir"]
[Black "Tasdogen, Dincer"]
[Result "1/2-1/2"]
[ECO "E92"]
[WhiteElo "2366"]
[BlackElo "2310"]
[Annotator "NA"]
[PlyCount "74"]
[EventDate "2019.07.17"]
[EventType "team-tourn"]
[EventCountry "TUR"]
[SourceTitle "playchess.com"]
[Source "ChessBase"]
[SourceQuality "1"]
[TimeControl "40/5400+30:1800+30"]

1. Nf3 {[%emt 0:00:30]} Nf6 {[%emt 0:00:30]} 2. c4 {[%emt 0:00:30]} g6 {[%emt 0:01:30]} 3. Nc3 {[%emt 0:00:30]} Bg7 {[%emt 0:00:30]} 4. e4 {[%emt 0:00:30]} d6 {[%emt 0:02:30]} 5. d4 {[%emt 0:01:30]} O-O {[%emt 0:00:30]} 6. Be2 {[%emt 0:01:30]} e5 {[%emt 0:01:30]} 7. dxe5 {[%emt 0:05:30]} dxe5 {[%emt 0:00:30]} 8. Qxd8 {[%emt 0:00:30]} Rxd8 {[%emt 0:00:30]} 9. Bg5 {[%emt 0:00:30]} Re8 {[%emt 0:04:30]} 10. Nd5 {[%emt 0:01:30]} Nxd5 {[%emt 0:03:30]} 11. cxd5 {[%emt 0:00:30]} c6 {[%emt 0:04:30]} 12. Bc4 {[%emt 0:00:30]} b5 {[%emt 0:08:30]} 13. Bb3 {[%emt 0:00:30]} a5 {[%emt 0:07:30]} 14. a4 {[%emt 0:05:30]} Bd7 {[%emt 0:09:30]} 15. dxc6 {[%emt 0:01:30]} Nxc6 {[%emt 0:05:30]} 16. axb5 {[%emt 0:03:30]} Nb4 {[%emt 0:00:30]} 17. O-O {[%emt 0:01:30]} Bxb5 {[%emt 0:05:30]} 18. Rfc1 {[%emt 0:01:30]} a4 {[%emt 0:09:30]} 19. Bc4 {[%emt 0:02:30]} Bxc4 {[%emt 0:08:30]} 20. Rxc4 {[%emt 0:02:30]} Nd3 {[%emt 0:04:30]} 21. Rcxa4 {[%emt 0:03:30]} Rxa4 {[%emt 0:00:41]} 22. Rxa4 {[%emt 0:00:00]} Nxb2 {[%emt 0:00:19]} 23. Ra2 {[%emt 0:00:00]} Nc4 {[%emt 0:01:46]} 24. Nd2 {[%emt 0:01:30]} Nxd2 {[%emt 0:01:56]} 25. Rxd2 {[%emt 0:00:30]} f6 {[%emt 0:01:46]} 26. Be3 {[%emt 0:00:30]} Bf8 {[%emt 0:00:23]} 27. g4 {[%emt 0:01:30]} Kf7 {[%emt 0:06:00]} 28. Rd7+ {[%emt 0:01:30]} Re7 {[%emt 0:00:07]} 29. Rxe7+ {[%emt 0:01:30]} Bxe7 {[%emt 0:00:06]} 30. Kg2 {[%emt 0:00:30]} h5 {[%emt 0:01:20]} 31. h3 {[%emt 0:00:30]} hxg4 {[%emt 0:00:06]} 32. hxg4 {[%emt 0:00:30]} f5 {[%emt 0:01:04]} 33. gxf5 {[%emt 0:00:30]} gxf5 {[%emt 0:00:04]} 34. exf5 {[%emt 0:00:30]} Kf6 {[%emt 0:00:09]} 35. f3 {[%emt 0:00:30]} Kxf5 {[%emt 0:00:30]} 36. Bc1 {[%emt 0:00:00]} e4 {[%emt 0:00:00]} 37. fxe4+ {[%emt 0:00:00]} Kxe4 {[%emt 0:00:00]} 1/2-1/2

[Event "Turkish Super League 2019"]
[Site "Konya"]
[Date "2019.07.28"]
[Round "13"]
[White "Tarlabasi, Emirhan"]
[Black "Gulbas, Cemil"]
[Result "1-0"]
[ECO "A58"]
[WhiteElo "2352"]
[BlackElo "2380"]
[Annotator "NA"]
[PlyCount "61"]
[EventDate "2019.07.17"]
[EventType "team-tourn"]
[EventCountry "TUR"]
[SourceTitle "playchess.com"]
[Source "ChessBase"]
[SourceQuality "1"]
[TimeControl "40/5400+30:1800+30"]

1. d4 {[%emt 0:00:30]} Nf6 {[%emt 0:00:30]} 2. c4 {[%emt 0:00:00]} c5 {[%emt 0:02:30]} 3. d5 {[%emt 0:00:00]} b5 {[%emt 0:01:30]} 4. cxb5 {[%emt 0:01:30]} a6 {[%emt 0:00:30]} 5. bxa6 {[%emt 0:00:30]} e6 {[%emt 0:00:30]} 6. dxe6 {[%emt 0:17:30]} fxe6 {[%emt 0:00:30]} 7. Nd2 {[%emt 0:00:30]} d5 {[%emt 0:04:30]} 8. e4 {[%emt 0:02:30]} Be7 {[%emt 0:24:30]} 9. Bb5+ {[%emt 0:10:30]} Bd7 {[%emt 0:08:30]} 10. Bd3 {[%emt 0:06:30]} Nxa6 {[%emt 0:13:30]} 11. e5 {[%emt 0:09:30]} Nb4 {[%emt 0:00:30]} 12. Bb1 {[%emt 0:01:30]} Ng8 {[%emt 0:06:30]} 13. Ne2 {[%emt 0:13:30]} Nh6 {[%emt 0:02:30]} 14. Nf3 {[%emt 0:01:30]} Nf7 {[%emt 0:00:30]} 15. O-O {[%emt 0:03:30]} Qc7 {[%emt 0:06:30]} 16. Re1 {[%emt 0:04:30]} g5 {[%emt 0:06:56]} 17. h3 {[%emt 0:02:30]} O-O-O {[%emt 0:06:26]} 18. Nc3 {[%emt 0:02:30]} Bc6 {[%emt 0:03:01]} 19. a3 {[%emt 0:01:21]} d4 {[%emt 0:01:29]} 20. axb4 {[%emt 0:01:43]} dxc3 {[%emt 0:00:12]} 21. Qb3 {[%emt 0:00:17]} Rd5 {[%emt 0:03:41]} 22. b5 {[%emt 0:05:05]} cxb2 {[%emt 0:00:41]} 23. Bxb2 {[%emt 0:01:22]} Bb7 {[%emt 0:00:06]} 24. b6 {[%emt 0:01:14]} c4 {[%emt 0:01:40]} 25. bxc7 {[%emt 0:00:57]} cxb3 {[%emt 0:00:04]} 26. Be4 {[%emt 0:00:20]} Rd7 {[%emt 0:00:43]} 27. Bxb7+ {[%emt 0:00:51]} Kxb7 {[%emt 0:00:06]} 28. Re3 {[%emt 0:00:20]} Rxc7 {[%emt 0:00:27]} 29. Rxb3+ {[%emt 0:00:11]} Kc8 {[%emt 0:00:12]} 30. Nd4 {[%emt 0:05:03]} Nd8 {[%emt 0:00:57]} 31. Nxe6 {[%emt 0:02:12]} 1-0

[Event "Turkish Super League 2019"]
[Site "Konya"]
[Date "2019.07.28"]
[Round "13"]
[White "Savina, Anastasia"]
[Black "Osmanodja, Filiz"]
[Result "1-0"]
[ECO "E11"]
[WhiteElo "2344"]
[BlackElo "2254"]
[Annotator "NA"]
[PlyCount "71"]
[EventDate "2019.07.17"]
[EventType "team-tourn"]
[EventCountry "TUR"]
[SourceTitle "playchess.com"]
[Source "ChessBase"]
[SourceQuality "1"]
[TimeControl "40/5400+30:1800+30"]

1. d4 {[%emt 0:00:30]} Nf6 {[%emt 0:00:30]} 2. Nf3 {[%emt 0:00:30]} e6 {[%emt 0:00:30]} 3. c4 {[%emt 0:00:30]} Bb4+ {[%emt 0:00:00]} 4. Bd2 {[%emt 0:00:00]} Qe7 {[%emt 0:00:00]} 5. Nc3 {[%emt 0:01:00]} O-O {[%emt 0:03:30]} 6. Qc2 {[%emt 0:02:30]} d5 {[%emt 0:09:30]} 7. e3 {[%emt 0:05:30]} c6 {[%emt 0:08:30]} 8. a3 {[%emt 0:10:30]} Bd6 {[%emt 0:03:30]} 9. Ne5 {[%emt 0:01:30]} Nfd7 {[%emt 0:08:30]} 10. f4 {[%emt 0:04:30]} Kh8 {[%emt 0:21:30]} 11. Bd3 {[%emt 0:09:30]} Bxe5 {[%emt 0:02:30]} 12. fxe5 {[%emt 0:03:30]} dxc4 {[%emt 0:00:30]} 13. Be2 {[%emt 0:11:30]} c5 {[%emt 0:13:30]} 14. O-O {[%emt 0:04:30]} Nc6 {[%emt 0:00:30]} 15. Rf4 {[%emt 0:09:30]} Nb6 {[%emt 0:03:30]} 16. Raf1 {[%emt 0:04:30]} Nd5 {[%emt 0:01:30]} 17. Re4 {[%emt 0:11:01]} f5 {[%emt 0:11:19]} 18. exf6 {[%emt 0:01:21]} Nxf6 {[%emt 0:00:02]} 19. Rh4 {[%emt 0:00:55]} g5 {[%emt 0:04:28]} 20. Rh3 {[%emt 0:02:24]} cxd4 {[%emt 0:00:30]} 21. exd4 {[%emt 0:00:30]} Nxd4 {[%emt 0:00:30]} 22. Qg6 {[%emt 0:00:30]} e5 {[%emt 0:00:30]} 23. Rh6 {[%emt 0:00:30]} Bf5 {[%emt 0:00:30]} 24. Qxg5 {[%emt 0:00:30]} Ng8 {[%emt 0:00:30]} 25. Qxe7 {[%emt 0:00:30]} Nxe2+ {[%emt 0:00:30]} 26. Nxe2 {[%emt 0:00:30]} Nxe7 {[%emt 0:00:30]} 27. Bb4 {[%emt 0:00:30]} Rae8 {[%emt 0:00:30]} 28. Ng3 {[%emt 0:00:30]} Kg7 {[%emt 0:00:30]} 29. Bxe7 {[%emt 0:00:30]} Rxe7 {[%emt 0:00:30]} 30. Rxf5 {[%emt 0:00:30]} Rd8 {[%emt 0:00:30]} 31. Rh4 {[%emt 0:00:30]} Rd1+ {[%emt 0:00:30]} 32. Rf1 {[%emt 0:00:30]} Rxf1+ {[%emt 0:00:30]} 33. Kxf1 {[%emt 0:00:30]} Rf7+ {[%emt 0:00:30]} 34. Ke2 {[%emt 0:00:30]} Re7 {[%emt 0:00:30]} 35. Kf1 {[%emt 0:00:30]} Rf7+ {[%emt 0:00:30]} 36. Ke2 {[%emt 0:00:30]} 1-0

[Event "Turkish Super League 2019"]
[Site "Konya"]
[Date "2019.07.28"]
[Round "13"]
[White "Secer, Ata"]
[Black "Eren, Ataberk"]
[Result "1-0"]
[ECO "C96"]
[WhiteElo "2324"]
[BlackElo "2295"]
[Annotator "NA"]
[PlyCount "75"]
[EventDate "2019.07.17"]
[EventType "team-tourn"]
[EventCountry "TUR"]
[SourceTitle "playchess.com"]
[Source "ChessBase"]
[SourceQuality "1"]
[TimeControl "40/5400+30:1800+30"]

1. e4 {[%emt 0:00:30]} e5 {[%emt 0:00:30]} 2. Nf3 {[%emt 0:00:00]} Nc6 {[%emt 0:00:30]} 3. Bb5 {[%emt 0:00:00]} a6 {[%emt 0:00:00]} 4. Ba4 {[%emt 0:02:30]} Nf6 {[%emt 0:00:00]} 5. O-O {[%emt 0:00:30]} Be7 {[%emt 0:00:30]} 6. Re1 {[%emt 0:00:30]} b5 {[%emt 0:00:30]} 7. Bb3 {[%emt 0:00:30]} O-O {[%emt 0:00:00]} 8. c3 {[%emt 0:00:30]} d6 {[%emt 0:00:00]} 9. h3 {[%emt 0:00:00]} Na5 {[%emt 0:00:00]} 10. Bc2 {[%emt 0:00:00]} c5 {[%emt 0:00:00]} 11. d4 {[%emt 0:00:30]} Nd7 {[%emt 0:00:00]} 12. Nbd2 {[%emt 0:00:30]} exd4 {[%emt 0:00:00]} 13. cxd4 {[%emt 0:00:30]} Nc6 {[%emt 0:00:00]} 14. d5 {[%emt 0:00:00]} Nce5 {[%emt 0:00:00]} 15. a4 {[%emt 0:00:00]} Rb8 {[%emt 0:00:00]} 16. Nxe5 {[%emt 0:00:30]} Nxe5 {[%emt 0:00:00]} 17. axb5 {[%emt 0:00:30]} axb5 {[%emt 0:00:00]} 18. f4 {[%emt 0:00:00]} Ng6 {[%emt 0:00:00]} 19. Nf3 {[%emt 0:00:00]} Bh4 {[%emt 0:00:30]} 20. Rf1 {[%emt 0:00:30]} Bg3 {[%emt 0:00:30]} 21. f5 {[%emt 0:00:00]} Ne5 {[%emt 0:00:00]} 22. Ng5 {[%emt 0:00:00]} Nd7 {[%emt 0:01:00]} 23. Nxh7 {[%emt 0:22:30]} Kxh7 {[%emt 0:00:30]} 24. f6 {[%emt 0:00:00]} g6 {[%emt 0:00:30]} 25. Qg4 {[%emt 0:00:00]} Be5 {[%emt 0:04:30]} 26. Qh4+ {[%emt 0:00:30]} Kg8 {[%emt 0:00:30]} 27. Bg5 {[%emt 0:00:30]} c4 {[%emt 0:07:30]} 28. Rf3 {[%emt 0:00:30]} Qb6+ {[%emt 0:13:30]} 29. Kh1 {[%emt 0:00:30]} Qd4 {[%emt 0:00:00]} 30. Raf1 {[%emt 0:00:30]} Qxb2 {[%emt 0:05:00]} 31. Qh6 {[%emt 0:10:30]} Nxf6 {[%emt 0:00:30]} 32. Bxf6 {[%emt 0:00:30]} Bxf6 {[%emt 0:00:30]} 33. Rxf6 {[%emt 0:00:00]} Bg4 {[%emt 0:30:30]} 34. hxg4 {[%emt 0:01:00]} Qxc2 {[%emt 0:00:30]} 35. R1f3 {[%emt 0:03:30]} Qxe4 {[%emt 0:02:30]} 36. Rh3 {[%emt 0:00:30]} Qe1+ {[%emt 0:00:00]} 37. Rf1 {[%emt 0:00:00]} Qxf1+ {[%emt 0:00:00]} 38. Kh2 {[%emt 0:00:00]} 1-0

[Event "Turkish Super League 2019"]
[Site "Konya"]
[Date "2019.07.28"]
[Round "13"]
[White "Agdelen, Huseyin Can"]
[Black "Caglar, Ahmet Ata"]
[Result "1/2-1/2"]
[ECO "B32"]
[WhiteElo "2275"]
[BlackElo "2051"]
[Annotator "NA"]
[PlyCount "49"]
[EventDate "2019.07.17"]
[EventType "team-tourn"]
[EventCountry "TUR"]
[SourceTitle "playchess.com"]
[Source "ChessBase"]
[SourceQuality "1"]
[TimeControl "40/5400+30:1800+30"]

1. e4 {[%emt 0:01:30]} c5 {[%emt 0:00:30]} 2. Nf3 {[%emt 0:00:00]} Nc6 {[%emt 0:00:30]} 3. d4 {[%emt 0:00:00]} cxd4 {[%emt 0:00:00]} 4. Nxd4 {[%emt 0:00:30]} e5 {[%emt 0:00:00]} 5. Nb5 {[%emt 0:00:30]} d6 {[%emt 0:00:30]} 6. N1c3 {[%emt 0:00:00]} a6 {[%emt 0:00:00]} 7. Na3 {[%emt 0:00:00]} b5 {[%emt 0:00:00]} 8. Nd5 {[%emt 0:00:30]} Nge7 {[%emt 0:00:00]} 9. Bd3 {[%emt 0:00:30]} Nxd5 {[%emt 0:03:00]} 10. exd5 {[%emt 0:00:30]} Ne7 {[%emt 0:00:00]} 11. c4 {[%emt 0:03:30]} g6 {[%emt 0:11:00]} 12. cxb5 {[%emt 0:06:30]} Bg7 {[%emt 0:00:30]} 13. O-O {[%emt 0:21:30]} O-O {[%emt 0:00:30]} 14. Bc4 {[%emt 0:09:30]} f5 {[%emt 0:09:30]} 15. f4 {[%emt 0:11:30]} exf4 {[%emt 0:10:30]} 16. Rxf4 {[%emt 0:03:30]} Be5 {[%emt 0:01:30]} 17. Rf1 {[%emt 0:03:30]} f4 {[%emt 0:01:30]} 18. Qe2 {[%emt 0:12:30]} h5 {[%emt 0:16:30]} 19. Kh1 {[%emt 0:08:04]} Bg4 {[%emt 0:01:30]} 20. Qe4 {[%emt 0:00:15]} Bf5 {[%emt 0:12:30]} 21. Qe2 {[%emt 0:02:07]} Bg4 {[%emt 0:00:30]} 22. Qe4 {[%emt 0:00:00]} Bf5 {[%emt 0:00:30]} 23. Qe2 {[%emt 0:02:07]} Bg4 {[%emt 0:00:30]} 24. Qe4 {[%emt 0:00:21]} Bf5 {[%emt 0:00:30]} 25. Qe2 {[%emt 0:00:39]} 1/2-1/2

[Event "Turkish Super League 2019"]
[Site "Konya"]
[Date "2019.07.28"]
[Round "13"]
[White "Sahin, Ozgun"]
[Black "Aydin, Hakan Arda"]
[Result "1/2-1/2"]
[ECO "C50"]
[WhiteElo "2214"]
[BlackElo "1956"]
[Annotator "NA"]
[PlyCount "81"]
[EventDate "2019.07.17"]
[EventType "team-tourn"]
[EventCountry "TUR"]
[SourceTitle "playchess.com"]
[Source "ChessBase"]
[SourceQuality "1"]
[TimeControl "40/5400+30:1800+30"]

1. e4 {[%emt 0:00:30]} e5 {[%emt 0:00:30]} 2. Nf3 {[%emt 0:00:30]} Nc6 {[%emt 0:00:00]} 3. Bc4 {[%emt 0:00:00]} Bc5 {[%emt 0:00:00]} 4. O-O {[%emt 0:00:00]} Nf6 {[%emt 0:00:30]} 5. d4 {[%emt 0:00:30]} Bxd4 {[%emt 0:01:30]} 6. Nxd4 {[%emt 0:00:00]} Nxd4 {[%emt 0:00:30]} 7. Bg5 {[%emt 0:00:00]} d6 {[%emt 0:01:30]} 8. f4 {[%emt 0:00:00]} Be6 {[%emt 0:02:30]} 9. fxe5 {[%emt 0:02:00]} dxe5 {[%emt 0:00:30]} 10. Na3 {[%emt 0:00:30]} Bxc4 {[%emt 0:13:30]} 11. Nxc4 {[%emt 0:00:30]} Nc6 {[%emt 0:00:00]} 12. Bxf6 {[%emt 0:08:30]} gxf6 {[%emt 0:07:00]} 13. c3 {[%emt 0:03:30]} Qxd1 {[%emt 0:01:30]} 14. Raxd1 {[%emt 0:01:30]} Rd8 {[%emt 0:00:30]} 15. Rxd8+ {[%emt 0:00:30]} Kxd8 {[%emt 0:00:00]} 16. Rxf6 {[%emt 0:00:30]} Ke7 {[%emt 0:01:00]} 17. Rh6 {[%emt 0:03:30]} Kf8 {[%emt 0:10:30]} 18. Ne3 {[%emt 0:09:30]} Ne7 {[%emt 0:00:30]} 19. Ng4 {[%emt 0:03:30]} Kg7 {[%emt 0:01:30]} 20. Rh3 {[%emt 0:00:30]} Rd8 {[%emt 0:03:30]} 21. Rf3 {[%emt 0:07:30]} Ng6 {[%emt 0:03:30]} 22. g3 {[%emt 0:05:30]} h5 {[%emt 0:10:30]} 23. Ne3 {[%emt 0:02:30]} Ne7 {[%emt 0:00:00]} 24. Kf1 {[%emt 0:02:30]} f6 {[%emt 0:11:00]} 25. Ke2 {[%emt 0:00:30]} Rd6 {[%emt 0:01:30]} 26. Nc4 {[%emt 0:03:30]} Ra6 {[%emt 0:02:30]} 27. a3 {[%emt 0:00:30]} Nc8 {[%emt 0:03:30]} 28. Rd3 {[%emt 0:21:30]} Nd6 {[%emt 0:00:30]} 29. Nxd6 {[%emt 0:06:43]} Rxd6 {[%emt 0:00:30]} 30. Rf3 {[%emt 0:02:13]} a5 {[%emt 0:03:30]} 31. b4 {[%emt 0:08:38]} a4 {[%emt 0:02:22]} 32. g4 {[%emt 0:01:16]} hxg4 {[%emt 0:03:43]} 33. Rg3 {[%emt 0:00:01]} f5 {[%emt 0:00:00]} 34. exf5 {[%emt 0:00:14]} Kf6 {[%emt 0:00:00]} 35. Rxg4 {[%emt 0:01:10]} Kxf5 {[%emt 0:00:00]} 36. Rh4 {[%emt 0:02:51]} e4 {[%emt 0:02:20]} 37. Rh5+ {[%emt 0:00:51]} Kf4 {[%emt 0:01:55]} 38. Rh4+ {[%emt 0:00:04]} Kf5 {[%emt 0:00:00]} 39. Rh5+ {[%emt 0:00:00]} Kf4 {[%emt 0:03:05]} 40. Rh4+ {[%emt 0:00:00]} Kf5 {[%emt 0:00:00]} 41. Rh5+ {[%emt 0:02:29]} 1/2-1/2